bitfinex/quotes_SOLUSD_20250316
["timestamp","ask_amount","ask_price","bid_price","bid_amount"]
[1742147005975,0.03,129.66,129.64,10.43400714]
[1742147007578,0.03,129.66,129.63,10.43400714]
[1742147008080,0.03,129.66,129.62,29.083656]
[1742147008695,0.03,129.66,129.63,10.43400714]
[1742147009680,0.03,129.66,129.64,10.43400714]
[1742147011767,0.03,129.66,129.63,10.43400714]
[1742147012982,0.03,129.66,129.63,10.49700714]
[1742147013782,0.03,129.66,129.63,0.063]
[1742147014168,0.03,129.66,129.63,10.49700714]
[1742147014982,20.03,129.66,129.64,10.43400714]
[1742147015177,0.03,129.66,129.64,10.43400714]
[1742147017587,20.03,129.66,129.64,10.43400714]
[1742147020683,0.03,129.66,129.65,10.43400714]
[1742147026896,0.03,129.66,129.64,10.43400714]
[1742147033497,0.03,129.66,129.63,29.146656]
[1742147034888,0.03,129.66,129.64,10.43400714]
[1742147036096,0.03,129.66,129.65,10.43400714]
[1742147036299,0.03,129.66,129.65,29.083656]
[1742147036807,0.03,129.66,129.65,35.254056]
[1742147038384,0.03,129.66,129.65,35.39621757]
[1742147040710,0.03,129.66,129.65,29.22581757]
[1742147042199,0.03,129.66,129.65,29.083656]
[1742147045111,0.03,129.66,129.65,10.43400714]
[1742147045318,0.03,129.66,129.63,0.063]
[1742147046110,30.46400714,129.66,129.63,0.063]
[1742147046908,6.1704,129.65,129.63,0.063]
[1742147049592,16.60440714,129.65,129.63,0.063]
[1742147050001,10.43400714,129.64,129.63,0.063]
[1742147051211,16.60490714,129.64,129.63,0.063]
[1742147053712,24.32290714,129.64,129.63,0.063]
[1742147057097,24.46506871,129.64,129.63,0.063]
[1742147059419,24.49506871,129.64,129.63,0.063]
[1742147063820,7.7032,129.64,129.63,0.063]
[1742147064017,18.13720714,129.64,129.63,0.063]
[1742147064726,7.7032,129.64,129.63,0.063]
[1742147064924,16.63490714,129.64,129.63,0.063]
[1742147067734,6.2009,129.64,129.63,0.063]
[1742147067918,16.63490714,129.64,129.63,0.063]
[1742147070744,16.77706871,129.64,129.63,0.063]
[1742147071337,20.0,129.62,129.61,0.063]
[1742147071631,30.43400714,129.62,129.61,0.063]
[1742147072136,36.60580714,129.62,129.61,0.063]
[1742147075027,26.1718,129.62,129.61,0.063]
[1742147076140,20.0,129.62,129.61,0.063]
[1742147077435,6.1714,129.63,129.61,0.063]
[1742147078338,20.0,129.62,129.61,0.063]
[1742147079738,30.43400714,129.62,129.61,0.063]
[1742147080238,20.0,129.62,129.61,0.063]
[1742147080416,26.1718,129.62,129.61,0.063]
[1742147094628,36.60580714,129.62,129.61,0.063]
[1742147094854,52.03550714,129.62,129.56,10.49700714]
[1742147095038,10.43400714,129.61,129.56,0.063]
[1742147095766,6.1728,129.6,129.56,0.063]
[1742147097862,10.43400714,129.59,129.56,0.063]
[1742147098061,10.43400714,129.58,129.56,0.063]
[1742147098449,30.43400714,129.57,129.56,0.063]
[1742147098833,20.0,129.57,129.56,0.063]
[1742147099853,26.1742,129.57,129.56,0.063]
[1742147100554,20.0,129.57,129.56,0.063]
[1742147101051,13.2129,129.6,129.56,10.49700714]
[1742147101259,6.1729,129.6,129.57,10.43400714]
[1742147101447,13.2125,129.61,129.57,10.43400714]
[1742147101647,7.04,129.61,129.59,10.43400714]
[1742147102164,0.03,129.63,129.6,10.43400714]
[1742147102337,6.2014,129.63,129.59,10.43400714]
[1742147102737,0.03,129.63,129.59,10.43400714]
[1742147103147,0.03,129.63,129.6,10.43400714]
[1742147104560,0.03,129.63,129.6,16.60680714]
[1742147104765,0.03,129.63,129.61,10.43400714]
[1742147104940,0.03,129.63,129.6,10.43400714]
[1742147106893,0.03,129.63,129.59,10.43400714]
[1742147107250,0.03,129.63,129.57,10.43400714]
[1742147107251,30.43400714,129.61,129.57,10.43400714]
[1742147107758,20.0,129.61,129.57,10.43400714]
[1742147108148,10.43400714,129.6,129.56,10.49700714]
[1742147108450,10.43400714,129.6,129.56,0.063]
[1742147108649,10.43400714,129.58,129.56,0.063]
[1742147110060,6.1742,129.57,129.56,0.063]
[1742147110367,20.0,129.57,129.56,0.063]
[1742147110548,7.04,129.59,129.56,10.49700714]
[1742147110756,7.04,129.59,129.57,10.43400714]
[1742147110757,20.0,129.59,129.57,10.43400714]
[1742147111157,20.0,129.59,129.58,10.43400714]
[1742147112255,13.212,129.62,129.58,10.43400714]
[1742147112560,13.212,129.62,129.56,6.6728]
[1742147112763,23.64600714,129.62,129.58,10.43400714]
[1742147113564,13.212,129.62,129.58,10.43400714]
[1742147114557,7.04,129.62,129.59,10.43400714]
[1742147114742,0.03,129.63,129.6,10.43400714]
[1742147114947,0.03,129.63,129.62,10.43400714]
[1742147115145,0.03,129.63,129.59,0.14216157]
[1742147115348,0.03,129.63,129.6,10.43400714]
[1742147115757,0.03,129.63,129.59,10.43400714]
[1742147115758,6.2014,129.63,129.59,10.43400714]
[1742147117366,0.03,129.63,129.61,10.43400714]
[1742147118354,0.03,129.63,129.6,10.43400714]
[1742147119975,0.03,129.63,129.61,10.43400714]
[1742147120774,0.03,129.63,129.62,10.43400714]
[1742147122673,0.03,129.63,129.61,18.64964886]
[1742147122874,0.03,129.63,129.61,10.43400714]
[1742147123058,0.03,129.63,129.6,10.46400714]
[1742147125080,0.03,129.63,129.61,10.43400714]
[1742147125385,0.03,129.63,129.6,10.46400714]
[1742147129096,0.03,129.63,129.61,10.43400714]
[1742147129800,0.03,129.63,129.62,29.083656]
[1742147129969,0.03,129.63,129.62,29.22581757]
[1742147130291,0.03,129.63,129.62,35.39761757]
[1742147130463,0.03,129.63,129.62,35.255456]
[1742147131362,0.03,129.63,129.62,29.083656]
[1742147131769,0.03,129.63,129.62,10.43400714]
[1742147131989,0.03,129.63,129.61,10.46400714]
[1742147132777,0.03,129.63,129.61,0.03]
[1742147133893,10.46400714,129.63,129.61,0.03]
[1742147134093,30.43400714,129.62,129.61,0.03]
[1742147134472,36.60580714,129.62,129.61,0.03]
[1742147135384,26.1718,129.62,129.61,0.03]
[1742147135589,36.60580714,129.62,129.61,0.03]
[1742147137086,42.46703935,129.62,129.61,0.03]
[1742147137795,42.60920092,129.62,129.61,0.0001]
[1742147137995,1.80736157,129.61,129.6,0.0001]
[1742147138299,18.10260092,129.61,129.6,0.0001]
[1742147138681,40.57014027,129.61,129.6,0.0001]
[1742147138997,24.27490092,129.61,129.6,0.0001]
[1742147140599,24.13273935,129.61,129.6,0.0001]
[1742147142199,6.1723,129.61,129.6,0.0001]
[1742147142571,6.172,129.62,129.6,0.0001]
[1742147143179,6.2016,129.63,129.6,16.29533935]
[1742147143393,0.03,129.63,129.61,16.29523935]
[1742147143789,6.2015,129.63,129.61,16.29523935]
[1742147143988,6.2015,129.63,129.6,16.29533935]
[1742147144387,6.2015,129.63,129.6,0.0001]
[1742147144579,22.49673935,129.63,129.6,0.0001]
[1742147148894,37.92523935,129.63,129.6,0.0001]
[1742147149806,20.0,129.61,129.6,0.0001]
[1742147153104,6.1719,129.62,129.6,16.29533935]
[1742147153308,6.2015,129.63,129.6,16.29533935]
[1742147154312,0.03,129.63,129.6,16.29533935]
[1742147154610,0.03,129.63,129.62,16.29523935]
[1742147154909,0.03,129.63,129.62,34.94488821]
[1742147156393,0.03,129.63,129.62,41.11668821]
[1742147157097,0.03,129.63,129.62,41.25884978]
[1742147161100,0.03,129.63,129.62,35.08704978]
[1742147161610,0.03,129.63,129.62,34.94488821]
[1742147161807,0.03,129.63,129.6,16.29533935]
[1742147161985,0.03,129.63,129.6,0.0001]
[1742147162189,16.32523935,129.63,129.6,0.0001]
[1742147162897,6.1723,129.61,129.6,0.0001]
[1742147163210,22.46753935,129.61,129.6,0.0001]
[1742147163414,6.1723,129.61,129.6,0.0001]
[1742147163616,0.03,129.63,129.6,0.0001]
[1742147164425,20.0,129.62,129.6,34.94498821]
[1742147164594,0.03,129.63,129.61,16.29523935]
[1742147166730,0.03,129.63,129.62,16.29523935]
[1742147167924,0.03,129.63,129.62,34.94488821]
[1742147168103,0.03,129.63,129.62,35.08704978]
[1742147170425,0.03,129.63,129.62,34.94488821]
[1742147171318,0.03,129.63,129.62,41.25884978]
[1742147171630,0.03,129.63,129.62,41.40101135]
[1742147173102,0.03,129.63,129.62,34.94488821]
[1742147173806,0.03,129.63,129.61,16.29523935]
[1742147175214,0.03,129.63,129.62,16.29523935]
[1742147176824,0.03,129.63,129.62,41.40101135]
[1742147178126,0.03,129.63,129.62,41.25884978]
[1742147178308,0.03,129.63,129.62,34.94488821]
[1742147180608,0.03,129.63,129.62,34.94488821]
[1742147183319,0.03,129.63,129.62,41.11668821]
[1742147183629,0.03,129.63,129.62,34.94488821]
[1742147187314,0.03,129.63,129.6,0.0001]
[1742147187729,16.32523935,129.63,129.6,0.0001]
[1742147188333,16.29523935,129.62,129.6,0.0001]
[1742147188523,16.29523935,129.61,129.6,0.0001]
[1742147188832,22.46753935,129.61,129.6,0.0001]
[1742147190830,23.97393935,129.61,129.6,0.0001]
[1742147191343,30.30323935,129.61,129.6,0.0001]
[1742147192137,36.36787725,129.61,129.6,0.0001]
[1742147192342,36.51003882,129.61,129.6,0.0001]
[1742147192541,36.51003882,129.61,129.56,0.063]
[1742147192542,20.0,129.58,129.56,0.063]
[1742147192843,16.29523935,129.57,129.56,0.063]
[1742147193723,20.0,129.54,129.53,0.063]
[1742147193923,43.29523935,129.54,129.53,0.063]
[1742147194925,49.61300092,129.54,129.53,0.063]
[1742147195239,65.90824027,129.54,129.53,0.063]
[1742147195637,65.7660787,129.54,129.53,0.063]
[1742147195949,49.47083935,129.54,129.53,0.063]
[1742147196543,65.90824027,129.54,129.53,0.063]
[1742147197520,0.14216157,129.53,129.52,0.0001]
[1742147197743,16.43740092,129.53,129.52,0.0001]
[1742147198121,0.14216157,129.52,129.51,0.063]
[1742147198322,0.14216157,129.52,129.5,0.03]
[1742147198323,16.57956249,129.52,129.5,0.03]
[1742147198546,16.29523935,129.51,129.5,0.03]
[1742147199233,22.47233935,129.51,129.5,0.03]
[1742147200027,22.47203935,129.52,129.5,0.03]
[1742147200240,16.29523935,129.51,129.5,0.03]
[1742147201146,42.47233935,129.51,129.5,0.03]
[1742147202933,22.47233935,129.51,129.5,0.03]
[1742147203149,22.61450092,129.51,129.5,0.03]
[1742147206459,0.14216157,129.5,129.49,0.063]
[1742147206659,36.43740092,129.5,129.49,0.0001]
[1742147207563,36.43740092,129.5,129.48,0.0001]
[1742147207864,20.0,129.47,129.46,0.03]
[1742147208039,36.29523935,129.47,129.46,0.03]
[1742147208559,42.47423935,129.47,129.46,0.03]
[1742147209851,6.1787,129.48,129.46,0.03]
[1742147210759,20.0,129.47,129.46,0.03]
[1742147210962,13.1981,129.49,129.46,0.03]
[1742147211143,20.0,129.47,129.46,0.03]
[1742147212066,26.179,129.47,129.46,0.03]
[1742147212360,42.53723935,129.47,129.46,0.03]
[1742147213449,44.06393935,129.47,129.46,0.03]
[1742147214051,44.20610092,129.47,129.46,0.03]
[1742147214363,44.20610092,129.47,129.46,0.0001]
[1742147214666,50.44427378,129.47,129.46,0.0001]
[1742147214869,91.15838421,129.47,129.44,0.0001]
[1742147215054,16.43740092,129.45,129.44,0.0001]
[1742147215459,16.29523935,129.45,129.44,0.0001]
[1742147215657,16.29523935,129.46,129.44,0.0001]
[1742147216078,16.29523935,129.45,129.44,0.0001]
[1742147217351,42.47513935,129.45,129.44,0.0001]
[1742147220780,22.61730092,129.45,129.44,0.0001]
[1742147221156,20.14216157,129.44,129.43,0.0001]
[1742147221357,78.5444507,129.44,129.43,0.0001]
[1742147221554,68.42961135,129.44,129.43,0.0001]
[1742147222585,0.14216157,129.41,129.4,0.03]
[1742147222784,18.02930092,129.41,129.4,0.0001]
[1742147223691,24.21120092,129.41,129.4,0.0001]
[1742147224063,31.23120092,129.41,129.4,0.0001]
[1742147225285,50.02301135,129.41,129.4,0.0001]
[1742147225659,20.0,129.38,129.33,0.03]
[1742147225861,20.0,129.34,129.33,0.03]
[1742147226068,27.02,129.34,129.33,0.03]
[1742147230486,33.2052,129.34,129.33,0.03]
[1742147231781,49.50043935,129.34,129.33,0.03]
[1742147233481,33.2052,129.34,129.33,0.03]
[1742147233884,49.64260092,129.34,129.33,0.03]
[1742147234079,33.2052,129.34,129.33,0.03]
[1742147234865,27.02,129.34,129.33,0.03]
[1742147236481,49.50043935,129.34,129.33,0.03]
[1742147236881,49.64260092,129.34,129.33,0.03]
[1742147237372,65.10570092,129.34,129.27,1.6401]
[1742147237573,16.29523935,129.31,129.27,0.03]
[1742147238181,6.1871,129.3,129.27,0.03]
[1742147238369,23.31523935,129.29,129.27,0.03]
[1742147238585,7.02,129.29,129.27,0.03]
[1742147239673,7.02,129.29,129.27,16.32523935]
[1742147239878,7.02,129.32,129.28,16.29523935]
[1742147240292,6.1863,129.32,129.28,16.29523935]
[1742147240497,29.50103935,129.33,129.28,16.29523935]
[1742147240686,23.31523935,129.33,129.28,22.48323935]
[1742147240873,7.02,129.33,129.3,16.29523935]
[1742147242189,7.02,129.33,129.3,22.48213935]
[1742147242496,7.02,129.33,129.31,16.29523935]
[1742147242680,7.02,129.33,129.3,6.1869]
[1742147242681,20.0,129.34,129.32,16.29523935]
[1742147242879,7.02,129.36,129.33,16.29523935]
[1742147243275,7.02,129.36,129.32,16.29523935]
[1742147243989,16.29523935,129.34,129.3,16.29523935]
[1742147244173,36.29523935,129.34,129.29,24.18293935]
[1742147244587,22.48093935,129.33,129.28,22.48313935]
[1742147244785,16.29523935,129.32,129.27,16.32523935]
[1742147244983,22.48093935,129.33,129.28,16.29523935]
[1742147245280,20.0,129.34,129.29,34.94488821]
[1742147245482,16.29523935,129.33,129.28,16.29523935]
[1742147245799,42.48063935,129.34,129.29,16.29523935]
[1742147246791,16.29523935,129.33,129.28,22.48313935]
[1742147247783,16.29523935,129.33,129.28,16.29523935]
[1742147247987,42.48063935,129.34,129.29,16.29523935]
[1742147248381,42.54363935,129.34,129.29,16.29523935]
[1742147249301,26.2484,129.34,129.3,16.29523935]
[1742147251412,16.29523935,129.32,129.27,16.32523935]
[1742147252385,16.29523935,129.32,129.27,22.51373935]
[1742147252704,16.29523935,129.33,129.27,16.32523935]
[1742147253003,6.1862,129.32,129.27,22.51373935]
[1742147253204,6.1862,129.32,129.28,16.29523935]
[1742147253907,22.48143935,129.32,129.27,16.32523935]
[1742147254288,7.02,129.31,129.27,16.32523935]
[1742147254600,16.29523935,129.3,129.27,0.03]
[1742147255705,22.48283935,129.29,129.27,0.03]
[1742147255889,6.1876,129.29,129.27,0.03]
[1742147256706,16.29523935,129.28,129.27,0.03]
[1742147257388,22.48283935,129.29,129.27,0.03]
[1742147259211,16.29523935,129.28,129.27,0.03]
[1742147259910,16.43740092,129.28,129.27,0.0001]
[1742147260115,35.22921135,129.28,129.27,0.0001]
[1742147260796,41.41731135,129.28,129.27,0.0001]
[1742147260997,64.62731135,129.28,129.27,0.0001]
[1742147261987,22.62550092,129.28,129.27,0.0001]
[1742147263308,22.76766249,129.28,129.27,0.0001]
[1742147263611,41.41731135,129.28,129.27,0.0001]
[1742147265702,22.62550092,129.28,129.27,0.0001]
[1742147266210,29.78766249,129.28,129.27,0.0001]
[1742147266518,48.43731135,129.28,129.27,0.0001]
[1742147271904,48.50031135,129.28,129.27,0.0001]
[1742147277233,42.69156211,129.28,129.27,0.0001]
[1742147280340,24.04191325,129.28,129.27,0.0001]
[1742147280913,42.69156211,129.28,129.27,0.0001]
[1742147282114,0.14216157,129.24,129.19,6.3536]
[1742147282325,10.48649011,129.21,129.19,6.3536]
[1742147282541,10.48649011,129.22,129.19,6.3536]
[1742147283452,6.1914,129.21,129.19,6.3536]
[1742147284333,6.1914,129.21,129.17,10.48649011]
[1742147284630,6.1914,129.21,129.16,18.07359011]
[1742147284631,16.67789011,129.21,129.16,18.07359011]
[1742147284813,10.48649011,129.2,129.16,7.5871]
[1742147285225,6.1914,129.21,129.14,0.03]
[1742147285226,10.48649011,129.17,129.14,0.03]
[1742147285432,10.48649011,129.16,129.14,0.03]
[1742147286237,10.48649011,129.15,129.14,0.03]
[1742147286617,16.68079011,129.15,129.14,0.03]
[1742147286931,22.5039,129.17,129.14,0.03]
[1742147286932,16.68049011,129.16,129.14,0.03]
[1742147287119,16.40996527,129.16,129.14,0.03]
[1742147287443,20.0,129.15,129.14,0.03]
[1742147289836,36.40996527,129.15,129.14,0.03]
[1742147290031,211.82,129.2,129.14,16.43996527]
[1742147290333,16.40996527,129.19,129.14,0.03]
[1742147290528,16.40996527,129.18,129.14,0.03]
[1742147291035,234.42196527,129.2,129.14,16.43996527]
[1742147291734,16.40996527,129.19,129.14,16.43996527]
[1742147292740,211.82,129.2,129.16,16.40996527]
[1742147293530,22.60156527,129.21,129.17,22.60306527]
[1742147293531,7.02,129.21,129.17,22.60306527]
[1742147294121,34.18394886,129.28,129.19,16.40996527]
[1742147294433,16.40996527,129.23,129.19,16.40996527]
[1742147294634,23.42996527,129.24,129.19,16.40996527]
[1742147295336,16.40996527,129.24,129.19,22.60226527]
[1742147295639,23.42996527,129.24,129.19,22.60226527]
[1742147296422,16.40996527,129.23,129.18,22.60266527]
[1742147296822,20.0,129.22,129.19,16.40996527]
[1742147297023,20.0,129.22,129.2,16.40996527]
[1742147297235,20.0,129.22,129.19,16.40996527]
[1742147297429,20.0,129.22,129.19,22.60206527]
[1742147297631,20.0,129.22,129.19,16.40996527]
[1742147297831,20.0,129.22,129.18,16.40996527]
[1742147298031,20.0,129.22,129.19,16.40996527]
[1742147299842,22.59966527,129.25,129.2,16.40996527]
[1742147300143,29.61966527,129.25,129.2,16.40996527]
[1742147301749,211.9,129.27,129.22,16.40996527]
[1742147301950,20.0,129.24,129.22,16.40996527]
[1742147302150,20.0,129.24,129.21,22.64646527]
[1742147303248,234.49866527,129.27,129.22,16.40996527]
[1742147303452,6.2512,129.28,129.24,16.40996527]
[1742147303652,22.66116527,129.28,129.23,16.40996527]
[1742147303849,16.40996527,129.27,129.22,17.96096527]
[1742147304154,22.66116527,129.28,129.23,16.40996527]
[1742147305548,16.40996527,129.27,129.22,17.96096527]
[1742147306637,6.1886,129.27,129.23,16.40996527]
[1742147306832,22.59856527,129.27,129.22,17.96096527]
[1742147307061,22.66156527,129.27,129.22,17.96096527]
[1742147307463,0.063,129.27,129.23,35.05961413]
[1742147307641,0.063,129.27,129.24,16.40996527]
[1742147308152,0.063,129.27,129.26,16.40996527]
[1742147308747,0.063,129.27,129.26,22.59896527]
[1742147309056,0.063,129.27,129.26,16.40996527]
[1742147309249,0.063,129.27,129.25,16.40996527]
[1742147309847,0.063,129.27,129.23,35.05961413]
[1742147310656,0.063,129.27,129.24,16.40996527]
[1742147310858,6.2515,129.27,129.24,16.40996527]
[1742147311254,10.48225232,129.25,129.21,6.2365]
[1742147311460,10.48225232,129.24,129.19,29.16190118]
[1742147312458,10.48225232,129.23,129.19,0.03]
[1742147312661,10.48225232,129.21,129.19,0.03]
[1742147312849,16.67405232,129.21,129.19,0.03]
[1742147313247,22.589,129.21,129.19,0.03]
[1742147313450,7.02,129.23,129.19,35.07684886]
[1742147314056,16.3972,129.26,129.21,16.3972]
[1742147314360,16.3972,129.25,129.21,18.64964886]
[1742147314968,6.19,129.24,129.21,18.64964886]
[1742147315666,22.5869,129.25,129.21,35.04684886]
[1742147315847,6.1897,129.25,129.21,35.04684886]
[1742147316547,6.1892,129.26,129.22,35.04684886]
[1742147316954,22.5864,129.26,129.22,18.64964886]
[1742147318365,6.1892,129.26,129.22,35.04684886]
[1742147318561,29.6689,129.27,129.22,35.04684886]
[1742147318744,13.2717,129.27,129.23,16.3972]
[1742147318947,13.2717,129.27,129.24,16.3972]
[1742147319161,0.063,129.27,129.25,16.3972]
[1742147319665,0.063,129.27,129.26,35.04684886]
[1742147320250,0.063,129.27,129.25,1.5154]
[1742147320251,0.063,129.27,129.25,17.9126]
[1742147320650,0.063,129.27,129.26,35.04684886]
[1742147321149,0.063,129.27,129.26,18.64964886]
[1742147321768,0.063,129.27,129.25,1.5154]
[1742147321973,0.063,129.27,129.24,18.64964886]
[1742147322160,0.063,129.27,129.25,35.04684886]
[1742147323172,0.063,129.27,129.26,16.3972]
[1742147324058,0.063,129.27,129.25,35.04684886]
[1742147325573,0.063,129.27,129.25,41.23624886]
[1742147325963,0.063,129.27,129.26,16.53936157]
[1742147327074,0.063,129.27,129.26,41.37801043]
[1742147327572,0.063,129.27,129.24,16.53936157]
[1742147327874,0.063,129.27,129.25,18.64964886]
[1742147329285,0.063,129.27,129.26,0.14216157]
[1742147329467,0.063,129.27,129.26,16.53936157]
[1742147330073,0.063,129.27,129.25,16.4272]
[1742147331674,0.063,129.27,129.25,0.03]
[1742147331865,0.063,129.27,129.25,16.4272]
[1742147332753,0.063,129.27,129.26,16.3972]
[1742147334460,0.063,129.27,129.26,41.37801043]
[1742147336778,0.063,129.27,129.26,35.18901043]
[1742147337359,0.063,129.27,129.26,35.04684886]
[1742147340666,0.063,129.27,129.26,41.23584886]
[1742147341887,0.063,129.27,129.26,35.04684886]
[1742147343297,0.063,129.27,129.26,41.23584886]
[1742147344088,0.063,129.27,129.26,41.37801043]
[1742147344290,0.0001,129.27,129.26,123.860972]
[1742147344588,0.0001,129.27,129.26,137.195972]
[1742147344790,0.0001,129.28,129.27,18.79181043]
[1742147345090,0.0001,129.28,129.27,117.14854901]
[1742147345266,0.0001,129.28,129.27,116.131072]
[1742147346072,0.0001,129.28,129.27,122.17741043]
[1742147346366,0.0001,129.28,129.27,115.98891043]
[1742147347487,0.0001,129.28,129.27,122.17741043]
[1742147348567,0.0001,129.28,129.27,41.37751043]
[1742147349293,0.0001,129.28,129.27,35.59565547]
[1742147349470,0.0001,129.28,129.27,36.75556197]
[1742147349668,0.063,129.34,129.28,0.14216157]
[1742147349893,0.063,129.34,129.33,18.64964886]
[1742147350865,0.063,129.34,129.31,29.12283233]
[1742147351065,0.063,129.34,129.31,35.00922132]
[1742147351698,0.063,129.34,129.32,16.35957246]
[1742147351869,0.063,129.34,129.33,18.64964886]
[1742147353391,0.063,129.34,129.31,16.35957246]
[1742147354587,0.063,129.34,129.32,18.64964886]
[1742147356374,0.063,129.34,129.33,35.29354446]
[1742147356575,0.063,129.34,129.33,41.47924446]
[1742147358791,0.063,129.34,129.33,42.63852106]
[1742147358993,0.063,129.34,129.33,123.43842106]
[1742147359589,0.063,129.34,129.33,122.27914446]
[1742147360477,0.063,129.34,129.33,116.09344446]
[1742147361695,0.063,129.34,129.33,122.27914446]
[1742147363294,0.063,129.34,129.33,41.47924446]
[1742147363795,0.063,129.34,129.33,35.29354446]
[1742147364492,0.063,129.34,129.33,35.15138289]
[1742147365281,0.063,129.34,129.33,18.64964886]
[1742147368707,0.063,129.34,129.33,35.00922132]
[1742147369407,0.063,129.34,129.33,18.64964886]
[1742147372915,0.063,129.34,129.33,35.58739045]
[1742147375494,0.063,129.34,129.33,18.64964886]
[1742147380234,0.063,129.34,129.32,18.64964886]
[1742147380432,0.063,129.34,129.3,10.46771845]
[1742147380600,0.063,129.34,129.3,18.79181043]
[1742147380912,10.53071845,129.34,129.3,18.79181043]
[1742147381615,6.1857,129.33,129.3,18.79181043]
[1742147382507,6.2484,129.34,129.3,18.79181043]
[1742147382904,6.2484,129.34,129.3,29.25952888]
[1742147383100,0.063,129.34,129.33,10.46771845]
[1742147383296,0.063,129.34,129.33,10.60988002]
[1742147383712,0.063,129.34,129.33,16.79558002]
[1742147385022,0.063,129.34,129.33,10.60988002]
[1742147386131,0.063,129.34,129.31,18.64964886]
[1742147387144,6.2482,129.34,129.31,18.64964886]
[1742147388028,0.063,129.34,129.31,18.64964886]
[1742147388228,0.063,129.34,129.31,35.01124657]
[1742147390756,0.063,129.34,129.31,41.19774657]
[1742147391066,0.063,129.34,129.32,16.36159771]
[1742147391762,0.063,129.34,129.33,35.29556971]
[1742147392858,0.063,129.34,129.33,36.45477343]
[1742147393664,0.063,129.34,129.33,348.45477343]
[1742147393840,0.063,129.34,129.33,353.48126971]
[1742147394837,0.063,129.4,129.34,0.28432314]
[1742147395043,0.063,129.4,129.39,16.36159771]
[1742147395960,0.063,129.4,129.39,41.33620814]
[1742147396349,0.063,129.4,129.39,122.27826971]
[1742147396741,0.063,129.4,129.39,128.54756971]
[1742147397175,0.063,129.41,129.4,18.933972]
[1742147397370,0.063,129.41,129.4,36.45407019]
[1742147397968,0.063,129.41,129.4,42.63637019]
[1742147399467,0.063,129.41,129.4,354.63637019]
[1742147399650,0.063,129.41,129.4,353.47786971]
[1742147400759,0.063,129.41,129.4,357.42056482]
[1742147401341,0.063,129.41,129.4,41.47786971]
[1742147401541,0.063,129.41,129.4,35.29556971]
[1742147402441,0.063,129.41,129.39,16.36159771]
[1742147402767,0.063,129.41,129.4,16.64592085]
[1742147402944,0.063,129.41,129.4,35.29556971]
[1742147403663,0.063,129.41,129.4,18.79181043]
[1742147404059,0.063,129.41,129.4,35.15340814]
[1742147404648,0.063,129.41,129.4,18.64964886]
[1742147407374,0.063,129.41,129.4,35.01124657]
[1742147408168,0.063,129.41,129.4,41.33570814]
[1742147408467,0.063,129.41,129.4,35.15340814]
[1742147408876,0.063,129.41,129.4,18.64964886]
[1742147411361,0.063,129.41,129.4,35.01124657]
[1742147412378,0.063,129.41,129.4,41.33570814]
[1742147413067,0.063,129.41,129.4,35.42675536]
[1742147413274,0.063,129.41,129.4,35.56891693]
[1742147414577,0.063,129.41,129.4,35.59891693]
[1742147415276,0.063,129.41,129.4,41.4762071]
[1742147416772,0.063,129.46,129.41,18.933972]
[1742147416959,0.063,129.46,129.45,16.47209667]
[1742147417665,0.063,129.46,129.45,35.12174553]
[1742147418879,0.063,129.46,129.45,122.2437071]
[1742147419385,0.063,129.46,129.45,123.40181866]
[1742147422382,0.063,129.46,129.45,116.0638071]
[1742147423658,0.063,129.46,129.45,122.2437071]
[1742147423991,0.063,129.46,129.45,116.0638071]
[1742147424175,0.063,129.46,129.45,18.79181043]
[1742147425184,0.063,129.46,129.45,41.30164553]